fUST/lending_fUST_20250608
["ID","MTS","AMOUNT","RATE_DAILY","PERIOD"]
[365014197,1749397859231,-1816.92,0.00021917,2]
[365014198,1749397859241,-1497.41,0.00021917,2]
[365014199,1749397859252,-440.0,0.00021917,2]
[365014200,1749397859262,-440.0,0.00021917,2]
[365014201,1749397859271,-440.0,0.00021917,2]
[365014202,1749397859282,-2391.39,0.00021917,2]
[365014203,1749397859292,-1136.2,0.00021917,2]
[365014204,1749397859302,-3847.83,0.00021917,2]
[365014205,1749397859312,-440.0,0.00021917,2]
[365014206,1749397859322,-500.12,0.00021917,2]
[365014207,1749397859332,-1497.71,0.00021917,2]
[365014208,1749397859343,-440.0,0.00021917,2]
[365014209,1749397859353,-2304.47,0.00021917,2]
[365014210,1749397859363,-440.0,0.00021917,2]
[365014211,1749397859373,-440.0,0.00021917,2]
[365014213,1749397859384,-953.88,0.00021917,2]
[365014214,1749397859394,-987.13,0.00021917,2]
[365014215,1749397859404,-665.3,0.00021917,2]
[365014216,1749397859415,-440.0,0.00021917,2]
[365014217,1749397859425,-440.0,0.00021917,2]
[365014218,1749397859435,-1500.0,0.00021946,2]
[365014219,1749397859445,-60356.65,0.00022,7]
[365014220,1749397859455,-440.0,0.00022191,4]
[365014221,1749397859465,-417.78,0.00022191,4]
[365014222,1749397859475,-440.0,0.00022191,4]
[365014223,1749397859485,-1046.62,0.00022191,4]
[365014224,1749397859496,-285.89,0.00022191,4]
[365014225,1749397859507,-673.94,0.00022191,4]
[365014226,1749397859516,-440.0,0.00022191,4]
[365014227,1749397859527,-611.96,0.00022191,4]
[365014228,1749397859537,-554.03,0.00022191,4]
[365014229,1749397859547,-2019.15,0.00022191,4]
[365014230,1749397859557,-451.11,0.00022191,4]
[365014231,1749397859567,-972.8,0.00022191,4]
[365014232,1749397859578,-440.0,0.00022191,4]
[365014233,1749397859588,-1383.94,0.00022191,4]
[365014234,1749397859598,-440.0,0.00022191,4]
[365014235,1749397859608,-203.17,0.00022191,4]
[365014236,1749397859618,-440.0,0.00022191,2]
[365014237,1749397859629,-499.18,0.00022191,4]
[365014238,1749397859639,-4351.89,0.00022191,4]
[365014239,1749397859650,-1826.21,0.00022191,4]
[365014240,1749397859660,-1816.92,0.00022191,4]
[365014241,1749397859670,-1497.41,0.00022191,4]
[365014242,1749397859680,-440.0,0.00022191,4]
[365014243,1749397859689,-440.0,0.00022191,4]
[365014244,1749397859702,-2391.39,0.00022191,4]
[365014245,1749397859712,-1136.2,0.00022191,4]
[365014246,1749397859722,-3847.83,0.00022191,4]
[365014247,1749397859732,-440.0,0.00022191,4]
[365014248,1749397859741,-500.12,0.00022191,4]
[365014249,1749397859751,-1497.71,0.00022191,4]
[365014250,1749397859761,-2304.47,0.00022191,4]
[365014251,1749397859770,-440.0,0.00022191,4]
[365014252,1749397859780,-953.88,0.00022191,4]
[365014253,1749397859790,-987.13,0.00022191,4]
[365014254,1749397859800,-665.3,0.00022191,4]
[365014255,1749397859809,-440.0,0.00022191,4]
[365014256,1749397859818,-440.0,0.00022465,4]
[365014257,1749397859828,-440.0,0.00022465,4]
[365014258,1749397859838,-1046.62,0.00022465,4]
[365014259,1749397859848,-673.94,0.00022465,4]
[365014260,1749397859858,-440.0,0.00022465,4]
[365014261,1749397859868,-611.96,0.00022465,4]
[365014262,1749397859878,-554.03,0.00022465,4]
[365014263,1749397859888,-2019.15,0.00022465,4]
[365014264,1749397859897,-451.11,0.00022465,4]
[365014265,1749397859907,-972.8,0.00022465,4]
[365014266,1749397859917,-173.03,0.00022465,4]
[365014267,1749397859927,-1383.94,0.00022465,4]
[365014268,1749397859937,-440.0,0.00022465,4]
[365014269,1749397859947,-154.33,0.00022465,2]
[365014270,1749397859956,-4351.89,0.00022465,4]
[365014271,1749397859966,-1826.21,0.00022465,4]
[365014272,1749397859978,-1816.92,0.00022465,4]
[365014273,1749397859988,-1497.41,0.00022465,4]
[365014274,1749397859998,-440.0,0.00022465,4]
[365014275,1749397860120,-407.22,0.00022465,4]
[365014276,1749397860131,-2391.39,0.00022465,4]
[365014277,1749397860141,-1136.2,0.00022465,4]
[365014278,1749397860150,-3847.83,0.00022465,4]
[365014279,1749397860160,-440.0,0.00022465,4]
[365014280,1749397860170,-500.12,0.00022465,4]
[365014281,1749397860179,-1497.71,0.00022465,4]
[365014282,1749397860189,-2304.47,0.00022465,4]
[365014283,1749397860199,-440.0,0.00022465,4]
[365014284,1749397860209,-953.88,0.00022465,4]
[365014285,1749397860219,-987.13,0.00022465,4]
[365014286,1749397860229,-665.3,0.00022465,4]
[365014287,1749397860238,-440.0,0.00022465,4]
[365014288,1749397860249,-440.0,0.00022739,4]
[365014289,1749397860259,-440.0,0.00022739,4]
[365014290,1749397860269,-1046.62,0.00022739,4]
[365014291,1749397860279,-673.94,0.00022739,4]
[365014292,1749397860289,-440.0,0.00022739,4]
[365014293,1749397860298,-611.96,0.00022739,4]
[365014294,1749397860308,-554.03,0.00022739,4]
[365014295,1749397860317,-2019.15,0.00022739,4]
[365014296,1749397860327,-451.11,0.00022739,4]
[365014297,1749397860338,-972.8,0.00022739,4]
[365014298,1749397860348,-1383.94,0.00022739,4]
[365014299,1749397860358,-440.0,0.00022739,4]
[365014300,1749397860368,-4351.89,0.00022739,4]
[365014301,1749397860378,-1826.21,0.00022739,4]
[365014302,1749397860388,-1816.92,0.00022739,4]
[365014303,1749397860399,-1497.41,0.00022739,4]
[365014304,1749397860409,-440.0,0.00022739,4]
[365014305,1749397860419,-2391.39,0.00022739,4]
[365014306,1749397860428,-1136.2,0.00022739,4]
[365014307,1749397860438,-3847.83,0.00022739,4]
[365014308,1749397860448,-440.0,0.00022739,4]
[365014309,1749397860459,-500.12,0.00022739,4]
[365014310,1749397860470,-1497.71,0.00022739,4]
[365014311,1749397860480,-2304.47,0.00022739,4]
[365014312,1749397860490,-440.0,0.00022739,4]
[365014313,1749397860501,-953.88,0.00022739,4]
[365014314,1749397860511,-987.13,0.00022739,4]
[365014315,1749397860522,-665.3,0.00022739,4]
[365014316,1749397860532,-467.39,0.00022739,4]
[365014317,1749397860542,-587.0,0.00022741,2]
[365014318,1749397860552,-870.98,0.000228,7]
[365014319,1749397860562,-1797.27,0.000228,7]
[365014320,1749397860572,-29873.51,0.000228,2]
[365014321,1749397860582,-151.0,0.00022915,2]
[365014322,1749397860592,-1688.0,0.00022915,2]
[365014323,1749397860603,-207.4,0.00022915,2]
[365014324,1749397860614,-5000.0,0.00022915,2]
[365014325,1749397860624,-500.0,0.00022915,2]
[365014326,1749397860634,-500.0,0.00022915,2]
[365014327,1749397860644,-500.0,0.00022915,2]
[365014328,1749397860654,-3034.25905547,0.00022915,2]
[365014329,1749397860664,-500.0,0.00022915,2]
[365014330,1749397860674,-500.0,0.00022915,2]
[365014331,1749397860684,-500.0,0.00022915,2]
[365014332,1749397860695,-500.0,0.00022915,2]
[365014333,1749397860705,-632.79567003,0.00022915,2]
[365014334,1749397860715,-500.0,0.00022915,2]
[365014335,1749397860725,-500.0,0.00022915,2]
[365014336,1749397860734,-500.0,0.00022915,2]
[365014337,1749397860744,-500.0,0.00022915,2]
[365014338,1749397860754,-500.0,0.00022915,2]
[365014339,1749397860764,-500.0,0.00022915,2]
[365014340,1749397860774,-500.0,0.00022915,2]
[365014341,1749397860784,-500.0,0.00022915,2]
[365014342,1749397860794,-500.0,0.00022915,2]
[365014343,1749397860804,-500.0,0.00022915,2]
[365014344,1749397860815,-500.0,0.00022915,2]
[365014345,1749397860824,-158.575084,0.00022959,2]
[365014346,1749397860835,-1750.456,0.0002297,2]
[365014347,1749397860844,-1000.0,0.00023,23]
[365014348,1749397860854,-1000.0,0.00023013,2]
[365014349,1749397860865,-440.0,0.00023013,4]
[365014350,1749397860875,-440.0,0.00023013,4]
[365014351,1749397860884,-1046.62,0.00023013,4]
[365014352,1749397860894,-673.94,0.00023013,4]
[365014353,1749397860904,-440.0,0.00023013,4]
[365014354,1749397860915,-611.96,0.00023013,4]
[365014355,1749397860927,-554.03,0.00023013,4]
[365014356,1749397860938,-2019.15,0.00023013,4]
[365014357,1749397860950,-451.11,0.00023013,4]
[365014358,1749397860961,-972.8,0.00023013,4]
[365014359,1749397860972,-1383.94,0.00023013,4]
[365014360,1749397860986,-440.0,0.00023013,4]
[365014361,1749397860998,-4351.89,0.00023013,4]
[365014362,1749397861008,-1826.21,0.00023013,4]
[365014363,1749397861019,-1816.92,0.00023013,4]
[365014364,1749397861031,-1497.41,0.00023013,4]
[365014365,1749397861042,-2391.39,0.00023013,4]
[365014366,1749397861052,-1136.2,0.00023013,4]
[365014367,1749397861063,-3847.83,0.00023013,4]
[365014368,1749397861074,-440.0,0.00023013,4]
[365014369,1749397861083,-500.12,0.00023013,4]
[365014370,1749397861092,-1497.71,0.00023013,4]
[365014371,1749397861102,-2304.47,0.00023013,4]
[365014372,1749397861112,-440.0,0.00023013,4]
[365014373,1749397861122,-953.88,0.00023013,4]
[365014374,1749397861132,-987.13,0.00023013,4]
[365014375,1749397861142,-665.3,0.00023013,4]
[365014376,1749397861152,-1815.222872,0.00023025,2]
[365014377,1749397861163,-191.9244093,0.0002308,2]
[365014378,1749397861172,-302.11,0.00023094,30]
[365014379,1749397861182,-500.0,0.00023119,2]
[365014380,1749397861191,-159.125215,0.00023182,2]
[365014381,1749397861201,-440.0,0.00023287,4]
[365014382,1749397861215,-440.0,0.00023287,4]
[365014383,1749397861225,-1046.62,0.00023287,4]
[365014384,1749397861235,-673.94,0.00023287,4]
[365014385,1749397861244,-440.0,0.00023287,4]
[365014386,1749397861254,-611.96,0.00023287,4]
[365014387,1749397861264,-554.03,0.00023287,4]
[365014388,1749397861274,-2019.15,0.00023287,4]
[365014389,1749397861283,-451.11,0.00023287,4]
[365014390,1749397861293,-972.8,0.00023287,4]
[365014391,1749397861303,-1383.94,0.00023287,4]
[365014392,1749397861313,-440.0,0.00023287,4]
[365014393,1749397861323,-4351.89,0.00023287,4]
[365014394,1749397861334,-1826.21,0.00023287,4]
[365014395,1749397861345,-1816.92,0.00023287,4]
[365014396,1749397861355,-1497.41,0.00023287,4]
[365014397,1749397861368,-2391.39,0.00023287,4]
[365014398,1749397861378,-1136.2,0.00023287,4]
[365014399,1749397861387,-3847.83,0.00023287,4]
[365014400,1749397861397,-440.0,0.00023287,4]
[365014401,1749397861408,-500.12,0.00023287,4]
[365014402,1749397861417,-1497.71,0.00023287,4]
[365014403,1749397861427,-2304.47,0.00023287,4]
[365014404,1749397861437,-440.0,0.00023287,4]
[365014405,1749397861447,-953.88,0.00023287,4]
[365014406,1749397861457,-987.13,0.00023287,4]
[365014407,1749397861467,-665.3,0.00023287,4]
[365014408,1749397861477,-151.0,0.000233,9]
[365014409,1749397861487,-1174.86,0.00023345,2]
[365014410,1749397861496,-150.0,0.00023378,2]
[365014411,1749397861506,-151.0,0.00023463,2]
[365014412,1749397861516,-5000.0,0.00023463,2]
[365014413,1749397861526,-126600.03079698,0.00023542,2]
[365014414,1749397861535,-440.0,0.00023561,4]
[365014415,1749397861544,-440.0,0.00023561,4]
[365014416,1749397861555,-1046.62,0.00023561,4]
[365014417,1749397861565,-673.94,0.00023561,4]
[365014418,1749397861574,-440.0,0.00023561,4]
[365014419,1749397861584,-611.96,0.00023561,4]
[365014420,1749397861594,-554.03,0.00023561,4]
[365014421,1749397861604,-2019.15,0.00023561,4]
[365014422,1749397861616,-451.11,0.00023561,4]
[365014423,1749397861626,-972.8,0.00023561,4]
[365014424,1749397861636,-1383.94,0.00023561,4]
[365014425,1749397861646,-440.0,0.00023561,4]
[365014426,1749397861656,-4351.89,0.00023561,4]
[365014427,1749397861666,-1826.21,0.00023561,4]
[365014428,1749397861676,-1816.92,0.00023561,4]
[365014429,1749397861686,-1497.41,0.00023561,4]
[365014430,1749397861696,-2391.39,0.00023561,4]
[365014431,1749397861705,-1136.2,0.00023561,4]
[365014432,1749397861715,-3847.83,0.00023561,4]
[365014433,1749397861725,-440.0,0.00023561,4]
[365014434,1749397861735,-500.12,0.00023561,4]
[365014435,1749397861746,-1497.71,0.00023561,4]
[365014436,1749397861756,-2304.47,0.00023561,4]
[365014437,1749397861767,-440.0,0.00023561,4]
[365014438,1749397861776,-953.88,0.00023561,4]
[365014439,1749397861786,-987.13,0.00023561,4]
[365014440,1749397861796,-665.3,0.00023561,4]
[365014441,1749397861806,-159.87566464,0.00023753,2]
[365014442,1749397861816,-150.0,0.00023773,2]
[365014443,1749397861826,-200.0,0.00023779,2]
[365014444,1749397861836,-165282.07032574,0.0002378,5]
[365014445,1749397861988,-414132.31461238,0.0002378,5]
[365014446,1749397861999,-151.928888,0.0002378,7]
[365014447,1749397862008,-151.0,0.0002378,7]
[365014448,1749397862019,-151.0,0.0002378,7]
[365014449,1749397862028,-192.438748,0.0002378,7]
[365014450,1749397862038,-151.0,0.0002378,7]
[365014451,1749397862048,-151.0,0.0002378,7]
[365014452,1749397862059,-151.0,0.0002378,7]
[365014453,1749397862070,-151.0,0.0002378,7]
[365014454,1749397862080,-151.0,0.0002378,7]
[365014455,1749397862090,-151.0,0.0002378,7]
[365014456,1749397862100,-151.0,0.0002378,7]
[365014457,1749397862110,-151.0,0.0002378,7]
[365014458,1749397862120,-38638.60251014,0.000238,2]
[365014459,1749397862130,-7804.89238409,0.000238,2]
[365014460,1749397862139,-2994.91924527,0.000238,3]
[365014461,1749397862149,-60356.65,0.000238,7]
[365014462,1749397862158,-440.0,0.00023835,4]
[365014463,1749397862168,-440.0,0.00023835,4]
[365014464,1749397862178,-1046.62,0.00023835,4]
[365014465,1749397862188,-673.94,0.00023835,4]
[365014466,1749397862309,-440.0,0.00023835,4]
[365014467,1749397862320,-611.96,0.00023835,4]
[365014468,1749397862330,-554.03,0.00023835,4]
[365014469,1749397862341,-2019.15,0.00023835,4]
[365014470,1749397862351,-451.11,0.00023835,4]
[365014471,1749397862362,-972.8,0.00023835,4]
[365014472,1749397862372,-1383.94,0.00023835,4]
[365014473,1749397862382,-440.0,0.00023835,4]
[365014474,1749397862392,-4351.89,0.00023835,4]
[365014475,1749397862402,-1826.21,0.00023835,4]
[365014476,1749397862412,-1816.92,0.00023835,4]
[365014477,1749397862422,-1497.41,0.00023835,4]
[365014478,1749397862432,-2391.39,0.00023835,4]
[365014479,1749397862443,-1136.2,0.00023835,4]
[365014480,1749397862452,-3847.83,0.00023835,4]
[365014481,1749397862462,-440.0,0.00023835,4]
[365014482,1749397862472,-500.12,0.00023835,4]
[365014483,1749397862482,-1497.71,0.00023835,4]
[365014484,1749397862493,-2304.47,0.00023835,4]
[365014485,1749397862503,-440.0,0.00023835,4]
[365014486,1749397862512,-953.88,0.00023835,4]
[365014487,1749397862523,-987.13,0.00023835,4]
[365014488,1749397862534,-665.3,0.00023835,4]
[365014489,1749397862546,-963.0,0.00023866,2]
[365014490,1749397862557,-972.71,0.00023866,2]
[365014491,1749397862567,-500.0,0.00023911,2]
[365014492,1749397862577,-505.32227117,0.00023926,2]
[365014493,1749397862587,-41695.26898024,0.00023988,2]
[365014494,1749397862597,-400.0,0.00024,14]
[365014495,1749397862606,-574.388674,0.00024,2]
[365014496,1749397862617,-9168.38525416,0.00024,60]
[365014497,1749397862627,-151.0,0.00024,14]
[365014498,1749397862638,-121544.67,0.00024,30]
[365014499,1749397862647,-1000.0,0.00024,24]
[365014500,1749397862657,-151.05917668,0.00024,2]
[365014501,1749397862666,-7065.32854905,0.00024,30]
[365014502,1749397862676,-160.0,0.00024,7]
[365014503,1749397862686,-315.11541396,0.00024,30]
[365014504,1749397862695,-11853.97844947,0.00024,30]
[365014505,1749397862706,-158.29,0.00024,2]
[365014506,1749397862715,-5000.0,0.00024011,2]
[365014507,1749397862725,-43649.63785729,0.00024083,7]
[365014508,1749397862735,-20899.74682184,0.00024083,7]
[365014509,1749397862744,-2200.0,0.00024091,2]
[365014510,1749397862754,-1156.439951,0.00024108,3]
[365014511,1749397862764,-2223.75497784,0.00024108,7]
[365014512,1749397862774,-56875.71760065,0.00024108,7]
[365014513,1749397862783,-1000.0,0.00024109,2]
[365014514,1749397862793,-588.0,0.00024109,2]
[365014515,1749397862802,-588.0,0.00024109,2]
[365014516,1749397862812,-588.0,0.00024109,2]
[365014517,1749397862822,-588.0,0.00024109,2]
[365014518,1749397862831,-588.0,0.00024109,2]
[365014519,1749397862841,-415.14013271,0.00024109,2]
[365014520,1749397862851,-440.0,0.00024109,4]
[365014521,1749397862860,-440.0,0.00024109,4]
[365014522,1749397862870,-1046.62,0.00024109,4]
[365014523,1749397862880,-673.94,0.00024109,4]
[365014524,1749397862889,-440.0,0.00024109,4]
[365014525,1749397862899,-611.96,0.00024109,4]
[365014526,1749397862909,-554.03,0.00024109,4]
[365014527,1749397862918,-2019.15,0.00024109,4]
[365014528,1749397862928,-451.11,0.00024109,4]
[365014529,1749397862938,-972.8,0.00024109,4]
[365014530,1749397862948,-1383.94,0.00024109,4]
[365014531,1749397862957,-440.0,0.00024109,4]
[365014532,1749397862967,-4351.89,0.00024109,4]
[365014533,1749397862978,-1826.21,0.00024109,4]
[365014534,1749397862989,-1816.92,0.00024109,4]
[365014535,1749397862999,-1497.41,0.00024109,4]
[365014536,1749397863009,-2391.39,0.00024109,4]
[365014537,1749397863019,-1136.2,0.00024109,4]
[365014538,1749397863029,-3847.83,0.00024109,4]
[365014539,1749397863040,-422.07,0.00024109,4]
[365014540,1749397863050,-500.12,0.00024109,4]
[365014541,1749397863062,-1497.71,0.00024109,4]
[365014542,1749397863073,-2304.47,0.00024109,4]
[365014543,1749397863083,-440.0,0.00024109,4]
[365014544,1749397863094,-953.88,0.00024109,4]
[365014545,1749397863104,-987.13,0.00024109,4]
[365014546,1749397863114,-665.3,0.00024109,4]
[365014547,1749397863125,-151.0,0.00024109,7]
[365014548,1749397863134,-151.0,0.00024109,7]
[365014549,1749397863144,-206.0,0.0002416,2]
[365014550,1749397863154,-3707.38675346,0.000242,2]
[365014551,1749397863163,-151.0,0.000242,7]
[365014552,1749397863174,-151.0,0.000242,7]
[365014553,1749397863185,-152.080715,0.000242,7]
[365014554,1749397863194,-152.087997,0.000242,7]
[365014555,1749397863204,-151.0,0.000242,7]
[365014556,1749397863214,-151.0,0.000242,7]
[365014557,1749397863224,-151.0,0.000242,7]
[365014558,1749397863234,-152.62958,0.000242,7]
[365014559,1749397863244,-151.0,0.00024207,7]
[365014560,1749397863254,-151.0,0.00024207,7]
[365014561,1749397863263,-196.3,0.00024207,7]
[365014562,1749397863274,-151.0,0.00024207,7]
[365014563,1749397863283,-151.0,0.00024207,7]
[365014564,1749397863293,-151.0,0.00024207,7]
[365014565,1749397863304,-152.288714,0.00024207,7]
[365014566,1749397863314,-151.0,0.00024207,7]
[365014567,1749397863324,-151.0,0.00024207,2]
[365014568,1749397863334,-151.0,0.00024207,2]
[365014569,1749397863343,-153.73147,0.00024207,7]
[365014570,1749397863353,-1408.643846,0.00024207,7]
[365014571,1749397863364,-1408.643846,0.00024207,7]
[365014572,1749397863374,-293.85068442,0.00024227,2]
[365014573,1749397863384,-215.0738,0.00024284,2]
[365014574,1749397863395,-870.98,0.000243,7]
[365014575,1749397863405,-1797.27,0.000243,7]
[365014576,1749397863415,-29873.51,0.000243,2]
[365014577,1749397863426,-151.0,0.000243,7]
[365014578,1749397863436,-151.0,0.000243,7]
[365014579,1749397863446,-151.0,0.000243,7]
[365014580,1749397863457,-183.590893,0.000243,7]
[365014581,1749397863467,-151.0,0.000243,7]
[365014582,1749397863477,-151.0,0.000243,7]
[365014583,1749397863488,-183.590893,0.000243,7]
[365014584,1749397863498,-151.0,0.000243,7]
[365014585,1749397863510,-151.0,0.000243,7]
[365014586,1749397863520,-151.0,0.000243,7]
[365014587,1749397863531,-372.51031634,0.00024321,2]
[365014588,1749397863541,-316.0,0.00024325,3]
[365014589,1749397863551,-316.0,0.00024325,3]
[365014590,1749397863562,-851.99,0.00024326,6]
[365014591,1749397863572,-5000.0,0.0002435,30]
[365014592,1749397863582,-5000.0,0.0002435,30]
[365014593,1749397863592,-5000.0,0.0002435,30]
[365014594,1749397863602,-1320.86,0.0002435,30]
[365014595,1749397863613,-440.0,0.00024383,4]
[365014596,1749397863623,-275.89843857,0.00024383,4]
[365014597,1749397863634,-1046.62,0.00024383,4]
[365014598,1749397863645,-673.94,0.00024383,4]
[365014599,1749397863656,-611.96,0.00024383,4]
[365014600,1749397863667,-554.03,0.00024383,4]
[365014601,1749397863677,-2019.15,0.00024383,4]
[365014602,1749397863688,-451.11,0.00024383,4]
[365014603,1749397863698,-972.8,0.00024383,4]
[365014604,1749397863708,-1383.94,0.00024383,4]
[365014605,1749397863719,-440.0,0.00024383,4]
[365014606,1749397863729,-4351.89,0.00024383,4]
[365014607,1749397863739,-1826.21,0.00024383,4]
[365014608,1749397863748,-1816.92,0.00024383,4]
[365014609,1749397863759,-1497.41,0.00024383,4]
[365014610,1749397863768,-2391.39,0.00024383,4]
[365014611,1749397863778,-1136.2,0.00024383,4]
[365014612,1749397863788,-3847.83,0.00024383,4]
[365014613,1749397863798,-500.12,0.00024383,4]
[365014614,1749397863808,-1497.71,0.00024383,4]
[365014615,1749397863818,-2304.47,0.00024383,4]
[365014616,1749397863828,-440.0,0.00024383,4]
[365014617,1749397863838,-953.88,0.00024383,4]
[365014618,1749397863848,-987.13,0.00024383,4]
[365014619,1749397863857,-665.3,0.00024383,4]
[365014620,1749397863868,-2000.0,0.000244,2]
[365014621,1749397863879,-200.0,0.000244,10]
[365014622,1749397863889,-800.0,0.00024409,2]
[365014623,1749397863899,-1570.682411,0.0002442,5]
[365014624,1749397863909,-800.0,0.00024434,2]
[365014625,1749397863919,-206.0,0.0002444,2]
[365014626,1749397863929,-1000.0,0.0002444,5]
[365014627,1749397863938,-800.0,0.00024442,2]
[365014628,1749397863949,-500.0,0.00024444,2]
[365014629,1749397863959,-1000.0,0.0002446,5]
[365014630,1749397863969,-800.0,0.0002447,2]
[365014631,1749397863979,-500.0,0.00024479,2]
[365014632,1749397863990,-500.0,0.00024479,2]
[365014633,1749397864000,-500.0,0.00024479,2]
[365014634,1749397864010,-1000.0,0.0002448,5]
[365014635,1749397864020,-1000.0,0.00024499,20]
[365014636,1749397864030,-20002.558338,0.000245,2]
[365014637,1749397864039,-1000.0,0.000245,5]
[365014638,1749397864050,-457.099486,0.000245,7]
[365014639,1749397864062,-457.099486,0.000245,7]
[365014640,1749397864072,-150.0,0.000245,30]
[365014641,1749397864083,-800.0,0.00024513,2]
[365014642,1749397864092,-851.99,0.00024526,7]
[365014643,1749397864102,-800.0,0.00024537,2]
[365014644,1749397864112,-5000.0,0.00024559,2]
[365014645,1749397864121,-151.0,0.0002457,7]
[365014646,1749397864131,-151.0,0.0002457,7]
[365014647,1749397864141,-151.0,0.0002457,7]
[365014648,1749397864151,-151.0,0.0002457,7]
[365014649,1749397864162,-357.538574,0.0002457,7]
[365014650,1749397864171,-357.538574,0.0002457,7]
[365014651,1749397864181,-357.538574,0.0002457,7]
[365014652,1749397864191,-357.538574,0.0002457,7]
[365014653,1749397864200,-357.538574,0.0002457,7]
[365014654,1749397864210,-357.538574,0.0002457,7]
[365014655,1749397864219,-357.538574,0.0002457,7]
[365014656,1749397864229,-357.538574,0.0002457,7]
[365014657,1749397864239,-357.538574,0.0002457,7]
[365014658,1749397864248,-357.538574,0.0002457,7]
[365014659,1749397864258,-357.538574,0.0002457,7]
[365014660,1749397864267,-357.538574,0.0002457,7]
[365014661,1749397864277,-357.538574,0.0002457,7]
[365014662,1749397864287,-357.538574,0.0002457,7]
[365014663,1749397864296,-357.538574,0.0002457,7]
[365014664,1749397864306,-357.538574,0.0002457,7]
[365014665,1749397864424,-357.538574,0.0002457,7]
[365014666,1749397864435,-357.538574,0.0002457,7]
[365014667,1749397864446,-357.538574,0.0002457,7]
[365014668,1749397864456,-357.538579,0.0002457,7]
[365014669,1749397864466,-151.0,0.0002457,7]
[365014670,1749397864476,-151.0,0.0002457,7]
[365014671,1749397864486,-151.0,0.0002457,7]
[365014672,1749397864496,-151.0,0.0002457,7]
[365014673,1749397864506,-151.0,0.0002457,7]
[365014674,1749397864516,-151.0,0.0002457,7]
[365014675,1749397864526,-151.0,0.0002457,7]
[365014676,1749397864535,-151.0,0.0002457,7]
[365014677,1749397864544,-151.0,0.0002457,7]
[365014678,1749397864554,-151.0,0.0002457,7]
[365014679,1749397864564,-151.0,0.0002457,7]
[365014680,1749397864574,-191.581664,0.0002457,7]
[365014681,1749397864583,-151.0,0.0002457,7]
[365014682,1749397864593,-151.0,0.0002457,7]
[365014683,1749397864603,-151.0,0.0002457,7]
[365014684,1749397864613,-151.0,0.0002457,7]
[365014685,1749397864622,-151.0,0.0002457,7]
[365014686,1749397864632,-151.0,0.0002457,7]
[365014687,1749397864642,-151.0,0.0002457,7]
[365014688,1749397864652,-151.0,0.0002457,7]
[365014689,1749397864661,-170.456833,0.0002457,7]
[365014690,1749397864671,-151.0,0.0002457,7]
[365014691,1749397864681,-151.0,0.0002457,7]
[365014692,1749397864690,-319.877509,0.0002457,7]
[365014693,1749397864700,-319.877509,0.0002457,7]
[365014694,1749397864710,-319.877509,0.0002457,7]
[365014695,1749397864721,-319.877509,0.0002457,7]
[365014696,1749397864731,-319.877509,0.0002457,7]
[365014697,1749397864741,-319.877509,0.0002457,7]